[Event "Fagernes op-A"]
[Site "Fagernes NOR"]
[Date "2023.04.04"]
[Round "3.17"]
[White "Cummings, David"]
[Black "Kulaots, Kaido"]
[Result "1/2-1/2"]
[ECO "A10"]
[WhiteElo "2318"]
[BlackElo "2525"]
[PlyCount "55"]
[GameId "2129404710651391"]
[EventDate "2023.04.02"]
[EventType "swiss"]
[EventRounds "9"]
[EventCountry "NOR"]
[SourceTitle "10 Days #719"]
[Source "ChessMix"]
[SourceDate "2023.04.10"]
[SourceVersion "1"]
[SourceVersionDate "2023.04.10"]
[SourceQuality "1"]
[TimeControl "40/6000+30:2400+30"]

1. c4 {[%emt 0:00:05]} g6 {[%emt 0:00:22]} 2. e4 {[%emt 0:00:23]} e5 {[%emt 0:00:41]} 3. d4 {[%emt 0:00:48]} Nf6 {[%emt 0:00:54]} 4. Nf3 {[%emt 0:01:26]} exd4 {[%emt 0:00:31]} 5. e5 {[%emt 0:00:32]} Ne4 {[%emt 0:01:27]} 6. Qxd4 {[%emt 0:01:08]} Bb4+ {[%emt 0:00:26]} 7. Nbd2 {[%emt 0:04:03]} Ng5 {[%emt 0:04:12]} 8. a3 {[%emt 0:24:28]} Nc6 {[%emt 0:08:35]} 9. Qf4 {[%emt 0:03:18]} Nxf3+ {[%emt 0:03:49]} 10. Qxf3 {[%emt 0:05:20]} Be7 {[%emt 0:03:45]} 11. Ne4 {[%emt 0:08:50]} Nxe5 {[%emt 0:02:13]} 12. Qc3 {[%emt 0:02:16]} f6 {[%emt 0:03:39]} 13. Bh6 {[%emt 0:06:29]} d6 {[%emt 0:12:41]} 14. O-O-O {[%emt 0:08:20]} Bf5 {[%emt 0:00:44]} 15. Ng3 {[%emt 0:01:02]} Qd7 {[%emt 0:01:24]} 16. h3 {[%emt 0:02:31]} O-O-O {[%emt 0:03:04]} 17. f4 {[%emt 0:01:30]} Nc6 {[%emt 0:02:21]} 18. Nxf5 {[%emt 0:08:03]} Qxf5 {[%emt 0:00:21]} 19. g4 {[%emt 0:00:58]} Qd7 {[%emt 0:04:46]} 20. Bg2 {[%emt 0:01:28]} Bf8 {[%emt 0:14:33]} 21. Bxf8 {[%emt 0:01:31]} Rhxf8 {[%emt 0:00:07]} 22. Rhe1 {[%emt 0:05:11]} f5 {[%emt 0:08:32]} 23. g5 {[%emt 0:04:39]} Rde8 {[%emt 0:05:27]} 24. Rxe8+ {[%emt 0:00:33]} Rxe8 {[%emt 0:00:28]} 25. c5 {[%emt 0:00:31]} Kb8 {[%emt 0:18:22]} 26. Kb1 {[%emt 0:03:15]} Nd8 {[%emt 0:02:37]} 27. cxd6 {[%emt 0:04:59]} cxd6 {[%emt 0:00:16]} 28. Qb4 {[%emt 0:00:47]} 1/2-1/2

[Event "Fagernes op-A"]
[Site "Fagernes NOR"]
[Date "2023.04.05"]
[Round "4.25"]
[White "Lye, Sverre"]
[Black "Cummings, David"]
[Result "1/2-1/2"]
[ECO "B13"]
[WhiteElo "2212"]
[BlackElo "2318"]
[PlyCount "121"]
[GameId "2129404710651421"]
[EventDate "2023.04.02"]
[EventType "swiss"]
[EventRounds "9"]
[EventCountry "NOR"]
[SourceTitle "10 Days #719"]
[Source "ChessMix"]
[SourceDate "2023.04.10"]
[SourceVersion "1"]
[SourceVersionDate "2023.04.10"]
[SourceQuality "1"]
[TimeControl "40/6000+30:2400+30"]

1. e4 {[%emt 0:00:05]} c6 {[%emt 0:00:15]} 2. d4 {[%emt 0:01:04]} d5 {[%emt 0:00:08]} 3. exd5 {[%emt 0:00:11]} cxd5 {[%emt 0:00:08]} 4. Bd3 {[%emt 0:00:10]} Nc6 {[%emt 0:00:39]} 5. c3 {[%emt 0:00:15]} Nf6 {[%emt 0:00:57]} 6. Bf4 {[%emt 0:00:14]} Bg4 {[%emt 0:00:38]} 7. Qb3 {[%emt 0:00:11]} Qd7 {[%emt 0:00:37]} 8. Nd2 {[%emt 0:00:33]} e6 {[%emt 0:00:44]} 9. Ngf3 {[%emt 0:00:23]} Bd6 {[%emt 0:00:23]} 10. Bg3 {[%emt 0:01:06]} Bxg3 {[%emt 0:02:41]} 11. hxg3 {[%emt 0:00:41]} Qc7 {[%emt 0:01:09]} 12. O-O {[%emt 0:14:06]} O-O {[%emt 0:01:51]} 13. Rae1 {[%emt 0:04:55]} Ne7 {[%emt 0:02:25]} 14. Ne5 {[%emt 0:05:04]} Bf5 {[%emt 0:00:33]} 15. Bxf5 {[%emt 0:04:28]} Nxf5 {[%emt 0:00:20]} 16. g4 {[%emt 0:08:12]} Nd6 {[%emt 0:01:25]} 17. g3 {[%emt 0:05:11]} Nfe4 {[%emt 0:21:30]} 18. Qd1 {[%emt 0:07:50]} Nxd2 {[%emt 0:12:22]} 19. Qxd2 {[%emt 0:00:05]} Ne4 {[%emt 0:00:12]} 20. Qe2 {[%emt 0:06:11]} f6 {[%emt 0:04:28]} 21. Nf3 {[%emt 0:02:26]} Rae8 {[%emt 0:01:50]} 22. Nd2 {[%emt 0:06:19]} Nd6 {[%emt 0:02:10]} 23. Qd3 {[%emt 0:03:28]} Qf7 {[%emt 0:03:38]} 24. b3 {[%emt 0:04:11]} b5 {[%emt 0:08:09]} 25. a4 {[%emt 0:11:22]} bxa4 {[%emt 0:01:59]} 26. Qa6 {[%emt 0:04:06]} Qc7 {[%emt 0:02:32]} 27. c4 {[%emt 0:02:22]} dxc4 {[%emt 0:12:46]} 28. Nxc4 {[%emt 0:02:25]} Nxc4 {[%emt 0:04:53]} 29. Qxc4 {[%emt 0:02:05]} Qxc4 {[%emt 0:00:34]} 30. bxc4 {[%emt 0:00:06]} Rc8 {[%emt 0:00:44]} 31. Rxe6 {[%emt 0:04:33]} Rxc4 {[%emt 0:00:12]} 32. Re7 {[%emt 0:02:38]} Rxd4 {[%emt 0:00:31]} 33. Rxa7 {[%emt 0:02:23]} Rfd8 {[%emt 0:01:57]} 34. Kg2 {[%emt 0:04:02]} Rxg4 {[%emt 0:00:54]} 35. Rc1 {[%emt 0:02:15]} h5 {[%emt 0:05:40]} 36. f3 {[%emt 0:00:53]} Rd2+ {[%emt 0:01:56]} 37. Kh3 {[%emt 0:00:06]} Rg5 {[%emt 0:04:20]} 38. Rxa4 {[%emt 0:01:10]} Rf2 {[%emt 0:00:35]} 39. Ra3 {[%emt 0:01:18]} Re5 {[%emt 0:01:35]} 40. g4 {[%emt 0:00:46]} hxg4+ {[%emt 0:02:19]} 41. fxg4 {[%emt 0:02:32]} Kh7 {[%emt 0:03:30]} 42. Rcc3 {[%emt 0:01:35]} Ree2 {[%emt 0:02:29]} 43. Re3 {[%emt 0:02:44]} Rh2+ {[%emt 0:01:28]} 44. Kg3 {[%emt 0:00:04]} Reg2+ {[%emt 0:00:20]} 45. Kf4 {[%emt 0:01:52]} Kg6 {[%emt 0:01:29]} 46. Rg3 {[%emt 0:03:46]} Rb2 {[%emt 0:02:25]} 47. Rgb3 {[%emt 0:03:56]} Rhf2+ {[%emt 0:00:53]} 48. Kg3 {[%emt 0:00:50]} Kh6 {[%emt 0:01:46]} 49. Rxb2 {[%emt 0:02:12]} Rxb2 {[%emt 0:00:04]} 50. Kf4 {[%emt 0:01:45]} Rb4+ {[%emt 0:00:50]} 51. Kg3 {[%emt 0:01:16]} g5 {[%emt 0:01:32]} 52. Ra7 {[%emt 0:03:04]} Rb3+ {[%emt 0:02:07]} 53. Kg2 {[%emt 0:00:07]} Re3 {[%emt 0:00:28]} 54. Rb7 {[%emt 0:00:31]} Kg6 {[%emt 0:00:08]} 55. Ra7 {[%emt 0:00:27]} Re6 {[%emt 0:00:11]} 56. Kf3 {[%emt 0:00:28]} f5 {[%emt 0:00:13]} 57. gxf5+ {[%emt 0:00:26]} Kxf5 {[%emt 0:00:06]} 58. Ra5+ {[%emt 0:00:39]} Kg6 {[%emt 0:00:11]} 59. Kg4 {[%emt 0:00:38]} Re4+ {[%emt 0:00:03]} 60. Kg3 {[%emt 0:00:25]} Kh5 {[%emt 0:00:03]} 61. Ra3 {[%emt 0:00:16]} 1/2-1/2

[Event "Fagernes op-A"]
[Site "Fagernes NOR"]
[Date "2023.04.07"]
[Round "7.32"]
[White "Cummings, David"]
[Black "Pujari, Rucha"]
[Result "1-0"]
[ECO "D35"]
[WhiteElo "2318"]
[BlackElo "2195"]
[PlyCount "119"]
[GameId "2129404710651492"]
[EventDate "2023.04.02"]
[EventType "swiss"]
[EventRounds "9"]
[EventCountry "NOR"]
[SourceTitle "10 Days #719"]
[Source "ChessMix"]
[SourceDate "2023.04.10"]
[SourceVersion "1"]
[SourceVersionDate "2023.04.10"]
[SourceQuality "1"]
[TimeControl "40/6000+30:2400+30"]

1. c4 {[%emt 0:00:11]} e6 {[%emt 0:02:40]} 2. Nc3 {[%emt 0:00:23]} d5 {[%emt 0:00:36]} 3. d4 {[%emt 0:00:13]} Nf6 {[%emt 0:00:35]} 4. cxd5 {[%emt 0:00:35]} exd5 {[%emt 0:00:08]} 5. Bg5 {[%emt 0:00:11]} c6 {[%emt 0:01:33]} 6. e3 {[%emt 0:00:27]} a5 {[%emt 0:02:55]} 7. Bd3 {[%emt 0:01:33]} Na6 {[%emt 0:00:52]} 8. Nge2 {[%emt 0:05:24]} Bd6 {[%emt 0:00:58]} 9. a3 {[%emt 0:04:02]} Nc7 {[%emt 0:02:21]} 10. Qc2 {[%emt 0:00:37]} h6 {[%emt 0:03:24]} 11. Bh4 {[%emt 0:02:15]} O-O {[%emt 0:00:32]} 12. f3 {[%emt 0:08:35]} Ne6 {[%emt 0:04:58]} 13. h3 {[%emt 0:05:55]} Be7 {[%emt 0:05:40]} 14. O-O {[%emt 0:07:24]} b5 {[%emt 0:07:13]} 15. Bf2 {[%emt 0:02:29]} Bd7 {[%emt 0:11:16]} 16. e4 {[%emt 0:04:01]} dxe4 {[%emt 0:01:23]} 17. fxe4 {[%emt 0:01:51]} Rc8 {[%emt 0:00:30]} 18. e5 {[%emt 0:15:21]} Nd5 {[%emt 0:04:42]} 19. Nxd5 {[%emt 0:00:37]} cxd5 {[%emt 0:00:06]} 20. Qb3 {[%emt 0:00:25]} Qb6 {[%emt 0:11:10]} 21. Nc3 {[%emt 0:15:12]} Nf4 {[%emt 0:05:12]} 22. Bb1 {[%emt 0:02:25]} Qe6 {[%emt 0:15:52]} 23. Bg3 {[%emt 0:09:58]} Nxh3+ {[%emt 0:17:04]} 24. gxh3 {[%emt 0:03:35]} Qxh3 {[%emt 0:00:17]} 25. Ne2 {[%emt 0:01:02]} Bg5 {[%emt 0:03:12]} 26. Qd3 {[%emt 0:03:28]} g6 {[%emt 0:02:24]} 27. Nf4 {[%emt 0:01:58]} Bxf4 {[%emt 0:01:08]} 28. Bxf4 {[%emt 0:00:27]} Qh5 {[%emt 0:00:44]} 29. Qg3 {[%emt 0:03:40]} f5 {[%emt 0:01:41]} 30. exf6 {[%emt 0:03:18]} Rxf6 {[%emt 0:00:02]} 31. Bd3 {[%emt 0:02:52]} Bh3 {[%emt 0:00:03]} 32. Rf2 {[%emt 0:02:29]} Rcf8 {[%emt 0:00:01]} 33. Rh2 {[%emt 0:01:20]} Rxf4 {[%emt 0:00:34]} 34. Qxh3 {[%emt 0:00:30]} Qxh3 {[%emt 0:03:12]} 35. Rxh3 {[%emt 0:00:01]} Rxd4 {[%emt 0:00:02]} 36. Rf1 {[%emt 0:01:15]} Rg4+ {[%emt 0:00:55]} 37. Kh2 {[%emt 0:00:05]} Rxf1 {[%emt 0:01:06]} 38. Bxf1 {[%emt 0:00:01]} Kg7 {[%emt 0:01:38]} 39. Bxb5 {[%emt 0:00:45]} h5 {[%emt 0:00:39]} 40. Rd3 {[%emt 0:00:50]} d4 {[%emt 0:00:32]} 41. Bc6 {[%emt 0:42:36]} Kf6 {[%emt 0:09:12]} 42. b4 {[%emt 0:00:00]} axb4 {[%emt 0:00:27]} 43. axb4 {[%emt 0:00:00]} Rh4+ {[%emt 0:02:41]} 44. Kg3 {[%emt 0:00:00]} Rg4+ {[%emt 0:00:04]} 45. Kf3 {[%emt 0:00:00]} Ke5 {[%emt 0:01:08]} 46. b5 {[%emt 0:00:00]} Rf4+ {[%emt 0:01:17]} 47. Kg3 {[%emt 0:00:00]} h4+ {[%emt 0:00:20]} 48. Kh3 {[%emt 0:00:00]} Kd6 {[%emt 0:01:23]} 49. Rb3 {[%emt 0:00:00]} Kc5 {[%emt 0:11:48]} 50. b6 {[%emt 0:00:00]} Kxc6 {[%emt 0:05:28]} 51. b7 {[%emt 0:00:00]} Rf8 {[%emt 0:00:09]} 52. b8=Q {[%emt 0:00:00]} Rxb8 {[%emt 0:00:05]} 53. Rxb8 {[%emt 0:00:00]} g5 {[%emt 0:01:34]} 54. Rd8 {[%emt 0:00:00]} Kc5 {[%emt 0:00:12]} 55. Kg4 {[%emt 0:00:00]} Kc4 {[%emt 0:10:22]} 56. Kxg5 {[%emt 0:00:00]} h3 {[%emt 0:01:20]} 57. Kf4 {[%emt 0:00:00]} Kd3 {[%emt 0:02:10]} 58. Rh8 {[%emt 0:00:00]} Ke2 {[%emt 0:00:00]} 59. Rxh3 {[%emt 0:00:00]} d3 {[%emt 0:00:00]} 60. Rh2+ {[%emt 0:00:00]} 1-0

[Event "Excelsior March op"]
[Site "Toronto CAN"]
[Date "2024.03.15"]
[Round "1.4"]
[White "Cummings, David"]
[Black "Qian, Ashley"]
[Result "1-0"]
[ECO "D36"]
[WhiteElo "2277"]
[BlackElo "1804"]
[PlyCount "125"]
[GameId "2160767740051111"]
[EventDate "2024.03.15"]
[EventType "swiss"]
[EventRounds "5"]
[EventCountry "CAN"]
[TimeControl "90+30"]
[WhiteClock "0:08:04"]
[BlackClock "0:04:37"]

1. d4 {[%emt 0:00:00]} d5 {[%emt 0:00:00]} 2. c4 {[%emt 0:00:00]} e6 {[%emt 0:00:00]} 3. Nc3 {[%emt 0:00:00]} Nf6 {[%emt 0:00:00]} 4. cxd5 {[%emt 0:00:00]} exd5 {[%emt 0:00:00]} 5. Bg5 {[%emt 0:00:00]} c6 {[%emt 0:00:00]} 6. e3 {[%emt 0:00:00]} Be7 {[%emt 0:00:00]} 7. Bd3 {[%emt 0:00:00]} Nbd7 {[%emt 0:00:00]} 8. Qc2 {[%emt 0:00:00]} h6 {[%emt 0:00:00]} 9. Bh4 {[%emt 0:00:00]} Nh5 {[%emt 0:00:00]} 10. Bxe7 {[%emt 0:00:00]} Qxe7 {[%emt 0:00:00]} 11. Nge2 {[%emt 0:00:00]} Nhf6 {[%emt 0:00:00]} 12. O-O {[%emt 0:00:00]} O-O {[%emt 0:00:00]} 13. Rae1 {[%emt 0:00:00]} Qd8 {[%emt 0:00:00]} 14. Nc1 {[%emt 0:00:00]} Re8 {[%emt 0:00:00]} 15. b4 {[%emt 0:00:00]} Nf8 {[%emt 0:00:00]} 16. Nb3 {[%emt 0:00:00]} Ne6 {[%emt 0:00:00]} 17. a4 {[%emt 0:00:00]} b6 {[%emt 0:00:00]} 18. Nd2 {[%emt 0:00:00]} Bb7 {[%emt 0:00:00]} 19. Nf3 {[%emt 0:00:00]} Rc8 {[%emt 0:00:00]} 20. Rb1 {[%emt 0:00:00]} Qe7 {[%emt 0:00:00]} 21. Qb2 {[%emt 0:00:00]} Ba8 {[%emt 0:00:00]} 22. Rfd1 {[%emt 0:00:00]} Red8 {[%emt 0:00:00]} 23. Ba6 {[%emt 0:00:00]} Bb7 {[%emt 0:00:00]} 24. Bf1 {[%emt 0:00:00]} Ba8 {[%emt 0:00:17]} 25. Rbc1 {[%emt 0:00:00]} Bb7 {[%emt 0:01:24]} 26. a5 {[%emt 0:00:00]} Nd7 {[%emt 0:06:45]} 27. Rb1 {[%emt 0:00:00]} Rb8 {[%emt 0:01:10]} 28. Qa2 {[%emt 0:00:00]} Qd6 {[%emt 0:02:03]} 29. Qc2 {[%emt 0:00:00]} Rbc8 {[%emt 0:00:45]} 30. Qb3 {[%emt 0:00:00]} Nf6 {[%emt 0:01:11]} 31. Ne5 {[%emt 0:00:03]} Qc7 {[%emt 0:01:03]} 32. f4 {[%emt 0:01:51]} Rb8 {[%emt 0:01:38]} 33. a6 {[%emt 0:01:01]} Ba8 {[%emt 0:00:08]} 34. Rbc1 {[%emt 0:01:44]} Qd6 {[%emt 0:00:23]} 35. Bd3 {[%emt 0:01:23]} Rbc8 {[%emt 0:00:32]} 36. Bb1 {[%emt 0:01:13]} Qe7 {[%emt 0:00:57]} 37. Ne2 {[%emt 0:01:00]} Nf8 {[%emt 0:00:44]} 38. Ng3 {[%emt 0:00:30]} Qe6 {[%emt 0:00:46]} 39. Bf5 {[%emt 0:01:25]} Qd6 {[%emt 0:00:12]} 40. Bxc8 {[%emt 0:00:07]} Rxc8 {[%emt 0:00:07]} 41. Rc3 {[%emt 0:01:54]} N6d7 {[%emt 0:00:46]} 42. Rdc1 {[%emt 0:00:33]} Nxe5 {[%emt 0:00:22]} 43. fxe5 {[%emt 0:00:11]} Qe6 {[%emt 0:00:30]} 44. Qc2 {[%emt 0:00:30]} Re8 {[%emt 0:01:11]} 45. Nf5 {[%emt 0:00:45]} Nh7 {[%emt 0:00:29]} 46. b5 {[%emt 0:01:40]} c5 {[%emt 0:00:31]} 47. dxc5 {[%emt 0:00:20]} Qxe5 {[%emt 0:00:14]} 48. cxb6 {[%emt 0:00:21]} axb6 {[%emt 0:00:23]} 49. Rc8 {[%emt 0:01:36]} Nf8 {[%emt 0:00:15]} 50. Rxe8 {[%emt 0:00:59]} Qxe8 {[%emt 0:00:05]} 51. Qc8 {[%emt 0:01:48]} Qe5 {[%emt 0:00:26]} 52. Qxa8 {[%emt 0:00:18]} Qxf5 {[%emt 0:00:11]} 53. a7 {[%emt 0:00:12]} Qe5 {[%emt 0:00:10]} 54. Qc8 {[%emt 0:01:10]} Qxe3+ {[%emt 0:00:09]} 55. Kh1 {[%emt 0:00:03]} Kh7 {[%emt 0:00:22]} 56. a8=Q {[%emt 0:00:12]} Ne6 {[%emt 0:00:10]} 57. Qxd5 {[%emt 0:00:15]} Qf4 {[%emt 0:00:36]} 58. Qd3+ {[%emt 0:00:25]} g6 {[%emt 0:00:07]} 59. Rf1 {[%emt 0:00:16]} Qe5 {[%emt 0:00:21]} 60. Rxf7+ {[%emt 0:00:14]} Ng7 {[%emt 0:00:07]} 61. Qcc3 {[%emt 0:00:45]} Qxc3 {[%emt 0:00:17]} 62. Qxc3 {[%emt 0:00:06]} Kg8 {[%emt 0:00:06]} 63. Qxg7# {[%emt 0:00:06]} 1-0

[Event "Excelsior March op"]
[Site "Toronto CAN"]
[Date "2024.03.16"]
[Round "2.4"]
[White "Ruchinskaya, Valerie"]
[Black "Cummings, David"]
[Result "0-1"]
[ECO "E20"]
[WhiteElo "1743"]
[BlackElo "2277"]
[PlyCount "56"]
[GameId "2160767740051119"]
[EventDate "2024.03.15"]
[EventType "swiss"]
[EventRounds "5"]
[EventCountry "CAN"]
[TimeControl "90+30"]
[WhiteClock "0:15:44"]
[BlackClock "0:42:25"]

1. d4 {[%emt 0:00:00]} Nf6 {[%emt 0:00:00]} 2. c4 {[%emt 0:00:00]} e6 {[%emt 0:00:00]} 3. Nc3 {[%emt 0:00:00]} Bb4 {[%emt 0:00:00]} 4. f3 {[%emt 0:00:00]} c5 {[%emt 0:00:00]} 5. d5 {[%emt 0:00:00]} b5 {[%emt 0:00:00]} 6. e4 {[%emt 0:00:00]} O-O {[%emt 0:00:00]} 7. e5 {[%emt 0:00:00]} Ne8 {[%emt 0:00:00]} 8. f4 {[%emt 0:00:00]} d6 {[%emt 0:00:00]} 9. Nf3 {[%emt 0:00:00]} exd5 {[%emt 0:00:00]} 10. Qxd5 {[%emt 0:00:00]} Qc7 {[%emt 0:00:00]} 11. Bd3 {[%emt 0:00:00]} Bb7 {[%emt 0:00:00]} 12. exd6 {[%emt 0:00:00]} Nxd6 {[%emt 0:00:00]} 13. Qh5 {[%emt 0:00:00]} Bxc3+ {[%emt 0:00:00]} 14. bxc3 {[%emt 0:00:00]} Re8+ {[%emt 0:00:00]} 15. Kf2 {[%emt 0:00:00]} g6 {[%emt 0:00:00]} 16. Qh3 {[%emt 0:00:00]} bxc4 {[%emt 0:00:00]} 17. Bb1 {[%emt 0:00:00]} f5 {[%emt 0:00:00]} 18. Bd2 {[%emt 0:00:00]} Nd7 {[%emt 0:00:00]} 19. g4 {[%emt 0:00:00]} fxg4 {[%emt 0:00:00]} 20. Qxg4 {[%emt 0:00:00]} Nf6 {[%emt 0:00:00]} 21. Qg2 {[%emt 0:00:00]} Nde4+ {[%emt 0:00:00]} 22. Ke2 {[%emt 0:00:00]} Nxd2+ {[%emt 0:00:00]} 23. Kxd2 {[%emt 0:00:00]} Qxf4+ {[%emt 0:00:00]} 24. Kc2 {[%emt 0:00:00]} Bxf3 {[%emt 0:00:00]} 25. Rf1 {[%emt 0:00:00]} Qe4+ {[%emt 0:00:00]} 26. Kc1 {[%emt 0:00:00]} Bxg2 {[%emt 0:00:00]} 27. Bxe4 {[%emt 0:00:00]} Bxf1 {[%emt 0:00:00]} 28. Bxa8 {[%emt 0:00:00]} Rxa8 {[%emt 0:00:00]} 0-1

[Event "Excelsior March op"]
[Site "Toronto CAN"]
[Date "2024.03.17"]
[Round "4.2"]
[White "Cummings, David"]
[Black "Xu, Ryan (Zhuoyuan)"]
[Result "1-0"]
[ECO "A11"]
[WhiteElo "2277"]
[BlackElo "1757"]
[PlyCount "63"]
[GameId "2160767740051133"]
[EventDate "2024.03.15"]
[EventType "swiss"]
[EventRounds "5"]
[EventCountry "CAN"]
[TimeControl "90+30"]
[WhiteClock "0:18:26"]
[BlackClock "0:44:07"]

1. c4 {[%emt 0:00:00]} c6 {[%emt 0:00:00]} 2. Nf3 {[%emt 0:00:00]} Nf6 {[%emt 0:00:00]} 3. Nc3 {[%emt 0:00:00]} d5 {[%emt 0:00:00]} 4. e3 {[%emt 0:00:00]} e6 {[%emt 0:00:00]} 5. b3 {[%emt 0:00:00]} Nbd7 {[%emt 0:00:00]} 6. Qc2 {[%emt 0:00:00]} Bd6 {[%emt 0:00:00]} 7. Bb2 {[%emt 0:00:00]} O-O {[%emt 0:00:00]} 8. Be2 {[%emt 0:00:00]} b6 {[%emt 0:00:00]} 9. Rg1 {[%emt 0:00:00]} Bb7 {[%emt 0:00:00]} 10. g4 {[%emt 0:00:00]} c5 {[%emt 0:00:00]} 11. g5 {[%emt 0:00:00]} Ne4 {[%emt 0:00:00]} 12. cxd5 {[%emt 0:00:00]} exd5 {[%emt 0:00:00]} 13. Nxe4 {[%emt 0:00:00]} dxe4 {[%emt 0:00:00]} 14. Qc3 {[%emt 0:00:00]} f6 {[%emt 0:00:00]} 15. gxf6 {[%emt 0:00:00]} Rxf6 {[%emt 0:00:00]} 16. Bb5 {[%emt 0:00:00]} Kh8 {[%emt 0:00:00]} 17. Bxd7 {[%emt 0:00:00]} exf3 {[%emt 0:00:00]} 18. Bf5 {[%emt 0:00:00]} Qe7 {[%emt 0:00:00]} 19. O-O-O {[%emt 0:00:00]} Rg8 {[%emt 0:00:00]} 20. Rg5 {[%emt 0:00:00]} h6 {[%emt 0:00:00]} 21. Rg6 {[%emt 0:00:00]} Rxg6 {[%emt 0:00:00]} 22. Bxg6 {[%emt 0:00:00]} Qg5 {[%emt 0:00:00]} 23. Bb1 {[%emt 0:00:00]} Rd8 {[%emt 0:00:00]} 24. h4 {[%emt 0:00:00]} Qg4 {[%emt 0:00:00]} 25. Qd3 {[%emt 0:00:00]} Kg8 {[%emt 0:00:00]} 26. Qh7+ {[%emt 0:00:00]} Kf7 {[%emt 0:00:00]} 27. h5 {[%emt 0:00:00]} Bf8 {[%emt 0:00:00]} 28. Bg6+ {[%emt 0:00:00]} Ke6 {[%emt 0:00:00]} 29. Bxg7 {[%emt 0:00:00]} Bd6 {[%emt 0:00:00]} 30. Bc3 {[%emt 0:00:00]} Be7 {[%emt 0:00:00]} 31. Qf7+ {[%emt 0:00:00]} Kd6 {[%emt 0:00:00]} 32. Be5+ {[%emt 0:00:00]} 1-0

[Event "Excelsior March op"]
[Site "Toronto CAN"]
[Date "2024.03.17"]
[Round "5.1"]
[White "Rodrigue-Lemieux, Shawn"]
[Black "Cummings, David"]
[Result "1-0"]
[ECO "B10"]
[WhiteElo "2477"]
[BlackElo "2277"]
[PlyCount "97"]
[GameId "2160767740231364"]
[EventDate "2024.03.15"]
[EventType "swiss"]
[EventRounds "5"]
[EventCountry "CAN"]
[TimeControl "90+30"]
[WhiteClock "0:05:05"]
[BlackClock "0:01:21"]

1. e4 {[%emt 0:00:00]} c6 {[%emt 0:00:00]} 2. Nf3 {[%emt 0:00:00]} d5 {[%emt 0:00:00]} 3. d3 {[%emt 0:00:00]} Qc7 {[%emt 0:00:00]} 4. Nc3 {[%emt 0:00:00]} dxe4 {[%emt 0:00:00]} 5. dxe4 {[%emt 0:00:00]} e5 {[%emt 0:00:00]} 6. Bc4 {[%emt 0:00:00]} b5 {[%emt 0:00:00]} 7. Bb3 {[%emt 0:00:00]} h6 {[%emt 0:00:00]} 8. Ne2 {[%emt 0:00:00]} Nf6 {[%emt 0:00:00]} 9. Ng3 {[%emt 0:00:00]} Nbd7 {[%emt 0:00:00]} 10. c3 {[%emt 0:00:00]} Nc5 {[%emt 0:00:00]} 11. Bc2 {[%emt 0:00:00]} Be6 {[%emt 0:00:00]} 12. b3 {[%emt 0:00:00]} Be7 {[%emt 0:00:00]} 13. O-O {[%emt 0:00:00]} O-O {[%emt 0:00:00]} 14. Qe2 {[%emt 0:00:00]} Rfd8 {[%emt 0:00:00]} 15. Nh4 {[%emt 0:00:00]} Bg4 {[%emt 0:00:00]} 16. Qe3 {[%emt 0:00:00]} Ne6 {[%emt 0:00:00]} 17. h3 {[%emt 0:00:00]} Bc5 {[%emt 0:00:00]} 18. Qe1 {[%emt 0:00:00]} Bh5 {[%emt 0:00:00]} 19. Kh1 {[%emt 0:00:00]} a5 {[%emt 0:00:00]} 20. a3 {[%emt 0:00:00]} Kh8 {[%emt 0:00:00]} 21. Nxh5 {[%emt 0:00:00]} Nxh5 {[%emt 0:00:00]} 22. g3 {[%emt 0:00:00]} Qd7 {[%emt 0:00:00]} 23. Kg2 {[%emt 0:00:00]} Ng5 {[%emt 0:00:00]} 24. Rh1 {[%emt 0:00:00]} g6 {[%emt 0:00:00]} 25. Qe2 {[%emt 0:00:00]} Nf6 {[%emt 0:00:32]} 26. Nf3 {[%emt 0:00:00]} Nxf3 {[%emt 0:00:27]} 27. Qxf3 {[%emt 0:00:00]} Ng8 {[%emt 0:00:14]} 28. Rd1 {[%emt 0:00:00]} Qe7 {[%emt 0:02:44]} 29. Rxd8 {[%emt 0:00:00]} Rxd8 {[%emt 0:00:11]} 30. b4 {[%emt 0:00:00]} Ba7 {[%emt 0:05:34]} 31. bxa5 {[%emt 0:00:00]} Rd6 {[%emt 0:00:12]} 32. Be3 {[%emt 0:00:00]} Rf6 {[%emt 0:00:28]} 33. Qe2 {[%emt 0:00:00]} Qc7 {[%emt 0:00:47]} 34. a4 {[%emt 0:00:24]} Qxa5 {[%emt 0:02:22]} 35. Bxa7 {[%emt 0:00:08]} Qxa7 {[%emt 0:00:04]} 36. a5 {[%emt 0:00:04]} Kg7 {[%emt 0:02:08]} 37. Qe3 {[%emt 0:06:46]} Qxe3 {[%emt 0:00:53]} 38. fxe3 {[%emt 0:00:02]} Re6 {[%emt 0:00:05]} 39. a6 {[%emt 0:08:30]} Re8 {[%emt 0:00:11]} 40. Bd3 {[%emt 0:00:22]} Nf6 {[%emt 0:02:31]} 41. c4 {[%emt 0:00:22]} b4 {[%emt 0:00:43]} 42. c5 {[%emt 0:00:10]} Nd7 {[%emt 0:00:17]} 43. Ra5 {[%emt 0:00:19]} b3 {[%emt 0:00:39]} 44. Kf2 {[%emt 0:00:39]} Ra8 {[%emt 0:00:17]} 45. Ke2 {[%emt 0:00:36]} b2 {[%emt 0:01:05]} 46. Kd2 {[%emt 0:01:05]} Nxc5 {[%emt 0:00:38]} 47. Rxc5 {[%emt 0:00:13]} Rxa6 {[%emt 0:00:06]} 48. Bb1 {[%emt 0:00:29]} Kf6 {[%emt 0:01:01]} 49. Rc2 {[%emt 0:00:46]} 1-0